[Event "Early-Titled-Tuesday-Blitz-October-17-2023"]
[Site "Chess.com"]
[Date "2023.10.17"]
[Round "3"]
[White "GradualismUnleashed"]
[Black "Iball95"]
[Result "0-1"]
[WhiteElo "2620"]
[BlackElo "2820"]
[TimeControl "180+1"]
[EndTime "8:30:23 PDT"]
[Termination "Iball95 won by resignation"]

1. e4 {[%clk 0:03:00.9]} 1... c5 {[%clk 0:03:00]} 2. Nf3 {[%clk 0:03:01.1]} 2...
e6 {[%clk 0:03:00.9]} 3. d4 {[%clk 0:03:01.6]} 3... cxd4 {[%clk 0:03:01.1]} 4.
Nxd4 {[%clk 0:03:02.5]} 4... Nf6 {[%clk 0:03:01.8]} 5. Nc3 {[%clk 0:03:03.1]}
5... Nc6 {[%clk 0:03:02.5]} 6. a3 {[%clk 0:03:03.6]} 6... d5 {[%clk 0:03:01.9]}
7. exd5 {[%clk 0:03:02.9]} 7... Nxd5 {[%clk 0:03:02.8]} 8. Nxc6 {[%clk
0:03:02.7]} 8... bxc6 {[%clk 0:03:03.7]} 9. Bd2 {[%clk 0:03:01.6]} 9... Be7
{[%clk 0:03:00.3]} 10. Bd3 {[%clk 0:03:01.3]} 10... O-O {[%clk 0:03:00.4]} 11.
O-O {[%clk 0:03:01.4]} 11... c5 {[%clk 0:03:01.1]} 12. Ne4 {[%clk 0:02:50.7]}
12... Bb7 {[%clk 0:02:59.8]} 13. c4 {[%clk 0:02:50.8]} 13... Nf6 {[%clk
0:02:25.1]} 14. Nxf6+ {[%clk 0:02:42.6]} 14... Bxf6 {[%clk 0:02:26]} 15. Be3
{[%clk 0:02:43]} 15... Qc7 {[%clk 0:02:23.2]} 16. Qc2 {[%clk 0:02:36.5]} 16...
h6 {[%clk 0:02:17.4]} 17. Rab1 {[%clk 0:02:33]} 17... a5 {[%clk 0:02:13.1]} 18.
b4 {[%clk 0:02:20.2]} 18... axb4 {[%clk 0:02:14]} 19. axb4 {[%clk 0:02:20.5]}
19... cxb4 {[%clk 0:02:14.9]} 20. Rxb4 {[%clk 0:02:20.9]} 20... Rfc8 {[%clk
0:02:10.4]} 21. Rxb7 {[%clk 0:02:04.9]} 21... Qxb7 {[%clk 0:02:10]} 22. Be4
{[%clk 0:02:05.3]} 22... Qa6 {[%clk 0:01:56]} 23. Bxa8 {[%clk 0:02:04.2]} 23...
Qxa8 {[%clk 0:01:55.5]} 24. c5 {[%clk 0:02:01.5]} 24... Qc6 {[%clk 0:01:54.9]}
25. h3 {[%clk 0:01:57.6]} 25... Be7 {[%clk 0:01:47.9]} 26. Rd1 {[%clk
0:01:50.7]} 26... Bf8 {[%clk 0:01:42.7]} 27. Qc4 {[%clk 0:01:40.5]} 27... Ra8
{[%clk 0:01:32.6]} 28. Rb1 {[%clk 0:01:33.5]} 28... Rc8 {[%clk 0:01:31]} 29. Rc1
{[%clk 0:01:29.8]} 29... Ra8 {[%clk 0:01:30]} 30. Qg4 {[%clk 0:01:29.3]} 30...
Kh7 {[%clk 0:01:28.9]} 31. Qf3 {[%clk 0:01:27.4]} 31... Qxf3 {[%clk 0:01:11.6]}
32. gxf3 {[%clk 0:01:28.3]} 32... Rc8 {[%clk 0:01:09.9]} 33. Kf1 {[%clk
0:01:13.1]} 33... Kg6 {[%clk 0:01:08.1]} 34. Ke2 {[%clk 0:01:13.5]} 34... f5
{[%clk 0:01:04.6]} 35. f4 {[%clk 0:01:05.6]} 35... Kf7 {[%clk 0:01:00.5]} 36.
Kd3 {[%clk 0:01:05.3]} 36... Ke8 {[%clk 0:00:57.3]} 37. Kc4 {[%clk 0:01:02.9]}
37... Kd7 {[%clk 0:00:57.5]} 38. Ra1 {[%clk 0:01:00.1]} 38... Be7 {[%clk
0:00:49.7]} 39. Ra7+ {[%clk 0:00:55.7]} 39... Ke8 {[%clk 0:00:45]} 40. Rb7
{[%clk 0:00:51.5]} 40... g5 {[%clk 0:00:42.8]} 41. Rb5 {[%clk 0:00:27.4]} 41...
Kd7 {[%clk 0:00:40.1]} 42. fxg5 {[%clk 0:00:26.4]} 42... hxg5 {[%clk 0:00:40.9]}
43. f4 {[%clk 0:00:26.3]} 43... gxf4 {[%clk 0:00:39.2]} 44. Bxf4 {[%clk
0:00:25.7]} 44... Bd8 {[%clk 0:00:28.3]} 45. Rb7+ {[%clk 0:00:25.6]} 45... Kc6
{[%clk 0:00:28.5]} 46. Ra7 {[%clk 0:00:20.9]} 46... Bf6 {[%clk 0:00:26.7]} 47.
Ra6+ {[%clk 0:00:21.1]} 47... Kd7 {[%clk 0:00:27.1]} 48. Rd6+ {[%clk 0:00:21.3]}
48... Ke7 {[%clk 0:00:27.9]} 49. c6 {[%clk 0:00:21.8]} 49... e5 {[%clk
0:00:26.6]} 50. Rd7+ {[%clk 0:00:22.2]} 50... Ke6 {[%clk 0:00:26.9]} 51. Kb5
{[%clk 0:00:14.4]} 51... exf4 {[%clk 0:00:26.6]} 52. Kb6 {[%clk 0:00:14.3]}
52... Be5 {[%clk 0:00:25.3]} 53. h4 {[%clk 0:00:14.2]} 53... f3 {[%clk
0:00:25.5]} 54. Rd2 {[%clk 0:00:14.1]} 54... Rb8+ {[%clk 0:00:23.9]} 55. Kc5
{[%clk 0:00:14.2]} 55... Rh8 {[%clk 0:00:23.5]} 56. Rf2 {[%clk 0:00:14]} 56...
Rxh4 {[%clk 0:00:24.3]} 57. Rxf3 {[%clk 0:00:14.5]} 57... Bd6+ {[%clk
0:00:24.8]} 58. Kb6 {[%clk 0:00:14.5]} 58... Rb4+ {[%clk 0:00:25.7]} 59. Ka5
{[%clk 0:00:15]} 59... Kd5 {[%clk 0:00:23.9]} 60. Rc3 {[%clk 0:00:13.1]} 60...
Rb8 {[%clk 0:00:21.3]} 61. c7 {[%clk 0:00:13.2]} 61... Rc8 {[%clk 0:00:21.8]}
62. Kb6 {[%clk 0:00:13.8]} 62... Rxc7 {[%clk 0:00:21.9]} 63. Rd3+ {[%clk
0:00:13.5]} 63... Ke6 {[%clk 0:00:22.3]} 0-1

[Event "Early-Titled-Tuesday-Blitz-October-17-2023"]
[Site "Chess.com"]
[Date "2023.10.17"]
[Round "3"]
[White "Kostya0705"]
[Black "GMKrikor"]
[Result "1-0"]
[WhiteElo "2649"]
[BlackElo "2812"]
[TimeControl "180+1"]
[EndTime "8:30:26 PDT"]
[Termination "Kostya0705 won by resignation"]

1. e4 {[%clk 0:03:00.9]} 1... e6 {[%clk 0:02:59.9]} 2. d4 {[%clk 0:02:52.8]}
2... d5 {[%clk 0:02:58.2]} 3. Nc3 {[%clk 0:02:52.2]} 3... Nf6 {[%clk 0:02:57.8]}
4. e5 {[%clk 0:02:52.3]} 4... Nfd7 {[%clk 0:02:58.1]} 5. f4 {[%clk 0:02:52.6]}
5... c5 {[%clk 0:02:58.9]} 6. Nf3 {[%clk 0:02:53.3]} 6... Nc6 {[%clk 0:02:59.4]}
7. Be3 {[%clk 0:02:53.5]} 7... a6 {[%clk 0:03:00.2]} 8. Ne2 {[%clk 0:02:52.1]}
8... Be7 {[%clk 0:02:51]} 9. c3 {[%clk 0:02:49.4]} 9... O-O {[%clk 0:02:50.9]}
10. g4 {[%clk 0:02:48.8]} 10... f6 {[%clk 0:02:48.1]} 11. Bg2 {[%clk 0:02:46.4]}
11... b5 {[%clk 0:02:44.4]} 12. O-O {[%clk 0:02:45.2]} 12... Nb6 {[%clk
0:02:30]} 13. dxc5 {[%clk 0:02:31.4]} 13... Nc4 {[%clk 0:02:29.5]} 14. Bf2
{[%clk 0:02:23]} 14... Nxb2 {[%clk 0:02:23.3]} 15. Qc2 {[%clk 0:02:20.3]} 15...
Nc4 {[%clk 0:02:23.4]} 16. a4 {[%clk 0:02:19.9]} 16... bxa4 {[%clk 0:02:17.9]}
17. Ned4 {[%clk 0:02:14]} 17... Nxd4 {[%clk 0:02:13.6]} 18. cxd4 {[%clk
0:02:12.5]} 18... a3 {[%clk 0:02:12.3]} 19. Rfb1 {[%clk 0:02:11.3]} 19... fxe5
{[%clk 0:02:08.6]} 20. fxe5 {[%clk 0:02:09.8]} 20... Bd7 {[%clk 0:02:06.1]} 21.
Nd2 {[%clk 0:02:08.1]} 21... Nxd2 {[%clk 0:01:03.1]} 22. Qxd2 {[%clk 0:02:07]}
22... Bg5 {[%clk 0:00:58.8]} 23. Qc2 {[%clk 0:02:04.5]} 23... Bb5 {[%clk
0:00:55.8]} 24. Rxa3 {[%clk 0:02:02.1]} 24... Bf4 {[%clk 0:00:52.2]} 25. Bg3
{[%clk 0:01:57.2]} 25... Qg5 {[%clk 0:00:48.7]} 26. Bxf4 {[%clk 0:01:52.8]}
26... Qxf4 {[%clk 0:00:49.6]} 27. Qd1 {[%clk 0:01:48.9]} 27... Qf2+ {[%clk
0:00:45]} 28. Kh1 {[%clk 0:01:48.4]} 28... Rab8 {[%clk 0:00:34.2]} 29. Rf3
{[%clk 0:01:43.1]} 29... Rxf3 {[%clk 0:00:33.2]} 30. Bxf3 {[%clk 0:01:39.8]}
30... Rf8 {[%clk 0:00:32.7]} 31. Bg2 {[%clk 0:01:37.7]} 31... Rf4 {[%clk
0:00:32.8]} 32. h3 {[%clk 0:01:27.4]} 32... Qxd4 {[%clk 0:00:31.5]} 33. Qxd4
{[%clk 0:01:19.7]} 33... Rxd4 {[%clk 0:00:32.4]} 34. Bf1 {[%clk 0:01:18.7]}
34... Bxf1 {[%clk 0:00:29.8]} 35. Rxf1 {[%clk 0:01:19.6]} 35... Rc4 {[%clk
0:00:29.6]} 36. Ra1 {[%clk 0:01:18.9]} 36... Rxc5 {[%clk 0:00:28]} 37. Rxa6
{[%clk 0:01:19.5]} 37... Kf7 {[%clk 0:00:28.8]} 38. Ra7+ {[%clk 0:01:19.9]}
38... Kf8 {[%clk 0:00:26.5]} 39. Ra8+ {[%clk 0:01:17.9]} 39... Ke7 {[%clk
0:00:23.2]} 40. Ra7+ {[%clk 0:01:18.3]} 40... Kf8 {[%clk 0:00:18.5]} 41. Ra8+
{[%clk 0:01:17.8]} 41... Kf7 {[%clk 0:00:19.2]} 42. Ra7+ {[%clk 0:01:16]} 42...
Kg6 {[%clk 0:00:19.9]} 43. Ra6 {[%clk 0:01:13]} 43... d4 {[%clk 0:00:20]} 44.
Rxe6+ {[%clk 0:01:12.6]} 44... Kg5 {[%clk 0:00:20.9]} 45. Rd6 {[%clk 0:01:13.2]}
45... Rc4 {[%clk 0:00:19.7]} 46. Rd7 {[%clk 0:01:02.4]} 46... g6 {[%clk
0:00:18.7]} 47. Kg2 {[%clk 0:00:57.9]} 47... Rc2+ {[%clk 0:00:15.2]} 48. Kg3
{[%clk 0:00:52.2]} 48... Rc3+ {[%clk 0:00:15.8]} 49. Kg2 {[%clk 0:00:52.8]}
49... d3 {[%clk 0:00:14.6]} 50. Kf3 {[%clk 0:00:46]} 50... d2+ {[%clk
0:00:14.2]} 51. Ke4 {[%clk 0:00:46.2]} 51... Rxh3 {[%clk 0:00:13.7]} 52. Rxd2
{[%clk 0:00:46]} 52... Ra3 {[%clk 0:00:09]} 53. Rh2 {[%clk 0:00:39.1]} 53... h5
{[%clk 0:00:05]} 54. gxh5 {[%clk 0:00:39]} 54... gxh5 {[%clk 0:00:05.9]} 55.
Rg2+ {[%clk 0:00:39.4]} 55... Kh6 {[%clk 0:00:06.3]} 56. e6 {[%clk 0:00:39.6]}
56... Ra1 {[%clk 0:00:04.8]} 57. Re2 {[%clk 0:00:37.6]} 57... Kg7 {[%clk
0:00:05.2]} 58. Ke5 {[%clk 0:00:37.4]} 58... Ra5+ {[%clk 0:00:05]} 59. Kd6
{[%clk 0:00:36.6]} 59... Ra6+ {[%clk 0:00:05.8]} 60. Ke7 {[%clk 0:00:36.9]}
60... Ra7+ {[%clk 0:00:06.2]} 61. Kd8 {[%clk 0:00:37.5]} 61... Ra8+ {[%clk
0:00:06.6]} 62. Kc7 {[%clk 0:00:36.8]} 62... Ra7+ {[%clk 0:00:07.4]} 63. Kb6
{[%clk 0:00:36.6]} 63... Re7 {[%clk 0:00:07.4]} 64. Kc6 {[%clk 0:00:36.9]} 64...
h4 {[%clk 0:00:01.9]} 65. Kd6 {[%clk 0:00:35.8]} 65... Re8 {[%clk 0:00:02.3]}
66. e7 {[%clk 0:00:35.5]} 66... h3 {[%clk 0:00:02]} 67. Rh2 {[%clk 0:00:33.9]}
67... Kf6 {[%clk 0:00:01.6]} 68. Rf2+ {[%clk 0:00:33.2]} 68... Kg7 {[%clk
0:00:01.7]} 69. Kd7 {[%clk 0:00:32.8]} 69... Ra8 {[%clk 0:00:01.3]} 70. e8=Q
{[%clk 0:00:32]} 70... Rxe8 {[%clk 0:00:01.4]} 71. Kxe8 {[%clk 0:00:32.9]} 71...
Kg6 {[%clk 0:00:02.3]} 72. Rh2 {[%clk 0:00:33.8]} 1-0

[Event "Early-Titled-Tuesday-Blitz-October-17-2023"]
[Site "Chess.com"]
[Date "2023.10.17"]
[Round "3"]
[White "rikchessmx"]
[Black "masterofpuppets2"]
[Result "0-1"]
[WhiteElo "2264"]
[BlackElo "2509"]
[TimeControl "180+1"]
[EndTime "8:30:30 PDT"]
[Termination "masterofpuppets2 won by checkmate"]

1. e4 {[%clk 0:03:00.9]} 1... c5 {[%clk 0:02:58.7]} 2. Nf3 {[%clk 0:02:57.3]}
2... Nc6 {[%clk 0:02:58.8]} 3. d4 {[%clk 0:02:33.7]} 3... cxd4 {[%clk
0:02:56.6]} 4. Nxd4 {[%clk 0:02:34.6]} 4... Nf6 {[%clk 0:02:56.8]} 5. Nc3 {[%clk
0:02:34.6]} 5... d6 {[%clk 0:02:56.5]} 6. Bc4 {[%clk 0:02:33.7]} 6... e6 {[%clk
0:02:55.4]} 7. Be3 {[%clk 0:02:33.1]} 7... a6 {[%clk 0:02:53.5]} 8. Qe2 {[%clk
0:02:32.4]} 8... Be7 {[%clk 0:02:46.1]} 9. O-O-O {[%clk 0:02:30]} 9... Bd7
{[%clk 0:02:33.9]} 10. f3 {[%clk 0:02:29.6]} 10... b5 {[%clk 0:02:33.3]} 11. Bb3
{[%clk 0:02:29.2]} 11... Qc7 {[%clk 0:02:26.8]} 12. g4 {[%clk 0:02:25.5]} 12...
Nxd4 {[%clk 0:02:17.5]} 13. Bxd4 {[%clk 0:02:25.1]} 13... O-O {[%clk 0:02:17.6]}
14. g5 {[%clk 0:02:22.4]} 14... Nh5 {[%clk 0:02:17]} 15. Be3 {[%clk 0:02:19.8]}
15... b4 {[%clk 0:02:11.3]} 16. Na4 {[%clk 0:02:17.5]} 16... Bb5 {[%clk
0:02:02.8]} 17. Qd2 {[%clk 0:02:12.1]} 17... Rab8 {[%clk 0:01:57.3]} 18. Qxb4
{[%clk 0:01:46.9]} 18... Be2 {[%clk 0:01:44.5]} 19. Bb6 {[%clk 0:01:46.6]} 19...
Qc6 {[%clk 0:01:31.6]} 20. h4 {[%clk 0:01:27.9]} 20... Bxf3 {[%clk 0:01:24.1]}
21. e5 {[%clk 0:01:26.2]} 21... dxe5 {[%clk 0:01:05.1]} 22. Qxe7 {[%clk
0:01:24.4]} 22... Bxh1 {[%clk 0:01:05.4]} 23. Bc5 {[%clk 0:01:10.8]} 23... Rfe8
{[%clk 0:00:53.4]} 24. Qd6 {[%clk 0:01:05]} 24... Rbc8 {[%clk 0:00:25.6]} 25.
Qxe5 {[%clk 0:01:03.9]} 25... Bf3 {[%clk 0:00:25]} 26. Re1 {[%clk 0:00:57.3]}
26... Rcd8 {[%clk 0:00:21.3]} 27. Bd4 {[%clk 0:00:51.1]} 27... Qd7 {[%clk
0:00:19.4]} 28. c3 {[%clk 0:00:46.2]} 28... Kh8 {[%clk 0:00:15.5]} 29. Nc5
{[%clk 0:00:44.7]} 29... Qc6 {[%clk 0:00:15]} 30. Nd3 {[%clk 0:00:36.4]} 30...
f6 {[%clk 0:00:12.1]} 31. Qe3 {[%clk 0:00:32.6]} 31... e5 {[%clk 0:00:09.2]} 32.
Bb6 {[%clk 0:00:31.6]} 32... Rb8 {[%clk 0:00:08.8]} 33. Ba5 {[%clk 0:00:29.1]}
33... Rec8 {[%clk 0:00:06.4]} 34. Nb4 {[%clk 0:00:22.3]} 34... Qd6 {[%clk
0:00:05.5]} 35. Qxf3 {[%clk 0:00:21.9]} 35... Nf4 {[%clk 0:00:04.7]} 36. gxf6
{[%clk 0:00:21.6]} 36... Nd3+ {[%clk 0:00:04.4]} 37. Kb1 {[%clk 0:00:19.5]}
37... Nxe1 {[%clk 0:00:04.5]} 38. fxg7+ {[%clk 0:00:19.6]} 38... Kxg7 {[%clk
0:00:04.8]} 39. Qg3+ {[%clk 0:00:20]} 39... Qg6+ {[%clk 0:00:04.9]} 40. Qxg6+
{[%clk 0:00:17.6]} 40... hxg6 {[%clk 0:00:05.6]} 41. Nd5 {[%clk 0:00:17.7]}
41... Nd3 {[%clk 0:00:05.1]} 42. Bc7 {[%clk 0:00:16.6]} 42... Rb7 {[%clk
0:00:04.5]} 43. Bxe5+ {[%clk 0:00:16.7]} 43... Nxe5 {[%clk 0:00:04.6]} 44. h5
{[%clk 0:00:15.5]} 44... gxh5 {[%clk 0:00:04.8]} 45. Nf4 {[%clk 0:00:14.9]}
45... Kh6 {[%clk 0:00:04.9]} 46. Ne6 {[%clk 0:00:14.6]} 46... h4 {[%clk
0:00:04.4]} 47. Bc2 {[%clk 0:00:14.9]} 47... h3 {[%clk 0:00:04.3]} 48. Nf4
{[%clk 0:00:15.8]} 48... h2 {[%clk 0:00:04.3]} 49. Be4 {[%clk 0:00:16.3]} 49...
Rf7 {[%clk 0:00:04.3]} 50. Ne6 {[%clk 0:00:15.5]} 50... Rf1+ {[%clk 0:00:04.3]}
51. Kc2 {[%clk 0:00:15.7]} 51... h1=Q {[%clk 0:00:04.9]} 52. Bxh1 {[%clk
0:00:15.6]} 52... Rxh1 {[%clk 0:00:05.8]} 53. Kb3 {[%clk 0:00:15.8]} 53... Rh2
{[%clk 0:00:06.3]} 54. Nd4 {[%clk 0:00:16.5]} 54... Rb8+ {[%clk 0:00:06.6]} 55.
Ka3 {[%clk 0:00:16.3]} 55... Rhxb2 {[%clk 0:00:07.3]} 56. Nf5+ {[%clk
0:00:16.9]} 56... Kg5 {[%clk 0:00:06.9]} 57. Ne3 {[%clk 0:00:15.9]} 57... Nd3
{[%clk 0:00:06.8]} 58. Nc4 {[%clk 0:00:15.1]} 58... Rc2 {[%clk 0:00:06.3]} 59.
Ne5 {[%clk 0:00:15.2]} 59... Nxe5 {[%clk 0:00:05.4]} 60. c4 {[%clk 0:00:14.6]}
60... Rc3+ {[%clk 0:00:05]} 61. Ka4 {[%clk 0:00:14.9]} 61... Rxc4+ {[%clk
0:00:05.5]} 62. Ka5 {[%clk 0:00:14.2]} 62... Nc6+ {[%clk 0:00:05.6]} 63. Kxa6
{[%clk 0:00:14.2]} 63... Ra8+ {[%clk 0:00:05.6]} 64. Kb7 {[%clk 0:00:14.5]}
64... Rxa2 {[%clk 0:00:05.5]} 65. Kb6 {[%clk 0:00:14.1]} 65... Ne5 {[%clk
0:00:05.5]} 66. Kb5 {[%clk 0:00:14.1]} 66... Rc3 {[%clk 0:00:04.8]} 67. Kb4
{[%clk 0:00:14.3]} 67... Rc8 {[%clk 0:00:04.7]} 68. Kb3 {[%clk 0:00:14.4]} 68...
Ra7 {[%clk 0:00:05]} 69. Kb4 {[%clk 0:00:14.6]} 69... Rb7+ {[%clk 0:00:05.5]}
70. Ka4 {[%clk 0:00:14.7]} 70... Ra8# {[%clk 0:00:06.4]} 0-1

[Event "Early-Titled-Tuesday-Blitz-October-17-2023"]
[Site "Chess.com"]
[Date "2023.10.17"]
[Round "3"]
[White "bescmelasti"]
[Black "Haykoooo0o"]
[Result "1-0"]
[WhiteElo "2619"]
[BlackElo "2443"]
[TimeControl "180+1"]
[EndTime "8:30:36 PDT"]
[Termination "bescmelasti won by resignation"]

1. e4 {[%clk 0:03:00.9]} 1... g6 {[%clk 0:02:47.4]} 2. d4 {[%clk 0:03:00.8]}
2... Bg7 {[%clk 0:02:46.1]} 3. Nf3 {[%clk 0:03:01.5]} 3... c6 {[%clk 0:02:46.1]}
4. Nc3 {[%clk 0:03:00.1]} 4... d5 {[%clk 0:02:46]} 5. h3 {[%clk 0:03:00.8]} 5...
dxe4 {[%clk 0:02:44.9]} 6. Nxe4 {[%clk 0:03:01.7]} 6... Nf6 {[%clk 0:02:44.5]}
7. Nxf6+ {[%clk 0:03:01.5]} 7... Bxf6 {[%clk 0:02:45.4]} 8. Bh6 {[%clk
0:02:57.7]} 8... Nd7 {[%clk 0:02:41.1]} 9. Bc4 {[%clk 0:02:50.9]} 9... Nb6
{[%clk 0:02:39.8]} 10. Bb3 {[%clk 0:02:47.7]} 10... a5 {[%clk 0:02:39.5]} 11. a4
{[%clk 0:02:46.8]} 11... Qd6 {[%clk 0:02:39]} 12. O-O {[%clk 0:02:41]} 12... Be6
{[%clk 0:02:37.1]} 13. Bxe6 {[%clk 0:02:36.6]} 13... Qxe6 {[%clk 0:02:38]} 14.
Re1 {[%clk 0:02:37.3]} 14... Qd6 {[%clk 0:02:38.1]} 15. c4 {[%clk 0:02:14.9]}
15... Nxc4 {[%clk 0:02:20.5]} 16. Qb3 {[%clk 0:02:14.7]} 16... Qb4 {[%clk
0:02:20]} 17. Qc2 {[%clk 0:02:13.5]} 17... Nd6 {[%clk 0:02:12.5]} 18. Ne5 {[%clk
0:02:07.4]} 18... Bxe5 {[%clk 0:02:03.1]} 19. Rxe5 {[%clk 0:01:37.3]} 19... Nf5
{[%clk 0:01:55.9]} 20. Bd2 {[%clk 0:01:35.1]} 20... Qd6 {[%clk 0:01:49.7]} 21.
Rae1 {[%clk 0:01:25.4]} 21... O-O {[%clk 0:01:47]} 22. Bc3 {[%clk 0:01:21.9]}
22... Rfe8 {[%clk 0:01:42.2]} 23. Qb3 {[%clk 0:01:10.3]} 23... e6 {[%clk
0:01:16.8]} 24. Rxa5 {[%clk 0:01:00.8]} 24... Rxa5 {[%clk 0:01:12.8]} 25. Bxa5
{[%clk 0:01:01.7]} 25... Qd5 {[%clk 0:01:08.1]} 26. Qxd5 {[%clk 0:00:55.6]}
26... cxd5 {[%clk 0:01:09]} 27. Bc3 {[%clk 0:00:49.7]} 27... Ra8 {[%clk
0:01:05.8]} 28. Ra1 {[%clk 0:00:47.3]} 28... Kf8 {[%clk 0:01:03.9]} 29. Kf1
{[%clk 0:00:42.8]} 29... Ke8 {[%clk 0:00:58]} 30. Ke2 {[%clk 0:00:43.2]} 30...
Kd7 {[%clk 0:00:57.6]} 31. Kd3 {[%clk 0:00:42.4]} 31... h5 {[%clk 0:00:57.4]}
32. g3 {[%clk 0:00:39.4]} 32... Nd6 {[%clk 0:00:47.8]} 33. b3 {[%clk 0:00:38.8]}
33... Ne4 {[%clk 0:00:46.4]} 34. Be1 {[%clk 0:00:39.1]} 34... Rc8 {[%clk
0:00:35.1]} 35. f3 {[%clk 0:00:37.4]} 35... Nd6 {[%clk 0:00:34.3]} 36. g4 {[%clk
0:00:37.1]} 36... hxg4 {[%clk 0:00:32.7]} 37. hxg4 {[%clk 0:00:38]} 37... Rh8
{[%clk 0:00:32.3]} 38. Bg3 {[%clk 0:00:34.1]} 38... Rh3 {[%clk 0:00:25.1]} 39.
Rg1 {[%clk 0:00:34.7]} 39... g5 {[%clk 0:00:13.9]} 40. Ke3 {[%clk 0:00:32.7]}
40... Nc8 {[%clk 0:00:13]} 41. Kf2 {[%clk 0:00:29.7]} 41... Ne7 {[%clk
0:00:13.3]} 42. Rc1 {[%clk 0:00:18.5]} 42... Nc6 {[%clk 0:00:13.8]} 43. b4
{[%clk 0:00:18.7]} 43... Nxb4 {[%clk 0:00:05.7]} 44. Rc7+ {[%clk 0:00:18.5]}
44... Ke8 {[%clk 0:00:06.5]} 45. Rxb7 {[%clk 0:00:17]} 45... Nc2 {[%clk
0:00:05.2]} 46. a5 {[%clk 0:00:16.2]} 46... Rh1 {[%clk 0:00:05.7]} 47. a6 {[%clk
0:00:15.2]} 47... Ra1 {[%clk 0:00:06.2]} 48. a7 {[%clk 0:00:15.7]} 48... Nxd4
{[%clk 0:00:02.4]} 49. Rb8+ {[%clk 0:00:15.9]} 49... Ke7 {[%clk 0:00:03.3]} 50.
a8=Q {[%clk 0:00:16.5]} 50... Rxa8 {[%clk 0:00:03.8]} 51. Rxa8 {[%clk
0:00:17.3]} 51... f6 {[%clk 0:00:02.9]} 52. Ra7+ {[%clk 0:00:17.1]} 52... Kf8
{[%clk 0:00:03.5]} 53. Bd6+ {[%clk 0:00:16.7]} 53... Kg8 {[%clk 0:00:04.1]} 54.
Kg2 {[%clk 0:00:15.1]} 54... Nb5 {[%clk 0:00:04.5]} 55. Rd7 {[%clk 0:00:13.9]}
55... d4 {[%clk 0:00:04.9]} 56. Bc5 {[%clk 0:00:13.7]} 56... e5 {[%clk
0:00:05.2]} 57. Bb6 {[%clk 0:00:12.2]} 57... Nc3 {[%clk 0:00:05]} 58. Bd8 {[%clk
0:00:11.6]} 58... Ne2 {[%clk 0:00:03.7]} 59. Bxf6 {[%clk 0:00:11.2]} 59... d3
{[%clk 0:00:04.2]} 60. Kf2 {[%clk 0:00:09.5]} 60... Nd4 {[%clk 0:00:01.6]} 61.
Bxe5 {[%clk 0:00:08.9]} 61... d2 {[%clk 0:00:02]} 62. Rxd4 {[%clk 0:00:08.8]}
1-0